bitfinex-derivatives/quotes_BTCF0:USTF0_20210404
["timestamp","ask_amount","ask_price","bid_price","bid_amount"]
[1617544113594,1.44664663,58001.0,58000.0,0.80661867]
[1617544113891,1.44664663,58001.0,58000.0,0.36292387]
[1617544117294,1.44664663,58001.0,58000.0,0.80662004]
[1617544118998,1.15701863,58001.0,58000.0,0.80662004]
[1617544119999,0.15701863,58001.0,58000.0,0.80662004]
[1617544120201,1.15701863,58001.0,58000.0,0.80662004]
[1617544120402,1.14693,58001.0,58000.0,0.80662004]
[1617544120701,0.14693,58001.0,58000.0,0.80662004]
[1617544120901,0.01008381,58002.0,58000.0,0.80662004]
[1617544121602,0.01008381,58002.0,58001.0,0.36284534]
[1617544122302,0.01008381,58002.0,58000.0,0.44369617]
[1617544122504,0.01008381,58002.0,58001.0,0.42355973]
[1617544122904,1.01008381,58002.0,58001.0,0.36284855]
[1617544123306,1.01008192,58002.0,58001.0,0.42355959]
[1617544123710,1.01008192,58002.0,58001.0,0.36284855]
[1617544124610,1.29948401,58002.0,58001.0,0.36284855]
[1617544125010,1.01007544,58002.0,58001.0,0.36284855]
[1617544126213,1.29922249,58002.0,58000.0,0.36270838]
[1617544126411,1.41777249,58002.0,58000.0,0.36270838]
[1617544126612,1.29920366,58001.0,58000.0,0.36270838]
[1617544127512,1.29920366,58001.0,57999.0,0.36272007]
[1617544127911,1.29920366,58001.0,58000.0,0.06071516]
[1617544128411,1.0,58001.0,58000.0,0.36271672]
[1617544129013,1.29916548,58001.0,58000.0,0.36271672]
[1617544129814,1.29916548,58001.0,57999.0,0.36271961]
[1617544130321,1.29916548,58001.0,58000.0,0.06071523]
[1617544130717,0.29916548,58001.0,58000.0,0.36271525]
[1617544132617,1.29916548,58001.0,58000.0,0.36271525]
[1617544133717,1.29916548,58001.0,58000.0,0.46830525]
[1617544134119,1.01007809,58001.0,58000.0,0.52901863]
[1617544134317,0.01007809,58001.0,58000.0,0.52901863]
[1617544134517,1.01007809,58001.0,58000.0,0.52901863]
[1617544134719,1.0,58001.0,58000.0,0.97245132]
[1617544137831,1.0,58002.0,58000.0,0.97245132]
[1617544138024,2.6366,58004.0,58000.0,0.97245132]
[1617544138222,1.10725655,58005.0,58001.0,0.86671279]
[1617544138420,0.01007878,58006.0,58004.0,2.74595655]
[1617544138622,1.29946962,58007.0,58004.0,2.74595655]
[1617544138623,1.01008106,58007.0,58004.0,2.74595655]
[1617544139023,1.01008106,58007.0,58006.0,0.36268862]
[1617544139421,1.0,58007.0,58006.0,0.36268862]
[1617544139920,1.0,58007.0,58006.0,0.80595917]
[1617544140822,0.10725655,58009.0,58006.0,0.80595917]
[1617544141034,0.01008668,58010.0,58006.0,0.80595917]
[1617544141233,0.01008649,58011.0,58006.0,0.80595917]
[1617544141639,0.29970413,58012.0,58010.0,2.7904]
[1617544141640,0.01008921,58012.0,58010.0,2.7904]
[1617544141846,0.01008921,58012.0,58011.0,0.2]
[1617544142056,0.01009245,58014.0,58011.0,0.2]
[1617544142222,0.01009245,58014.0,58011.0,1.7]
[1617544142423,0.01008278,58021.0,58013.0,2.16929354]
[1617544142623,0.01008278,58021.0,58013.0,2.27459354]
[1617544142922,0.01009362,58027.0,58013.0,3.21988055]
[1617544143724,0.10725655,58030.0,58026.0,0.36201662]
[1617544143725,0.11735573,58030.0,58026.0,0.36201662]
[1617544143924,1.0,58029.0,58026.0,0.51929662]
[1617544144125,0.11735573,58030.0,58026.0,0.51929662]
[1617544144524,0.11735573,58030.0,58029.0,0.10725655]
[1617544144726,0.10725655,58030.0,58029.0,0.10725655]
[1617544145126,0.10725655,58030.0,58029.0,0.1679405]
[1617544145526,1.10725655,58030.0,58029.0,0.1679405]
[1617544145826,0.10725655,58030.0,58029.0,0.1679405]
[1617544146027,0.10725655,58030.0,58029.0,0.52994621]
[1617544146429,0.1173733,58030.0,58029.0,0.52994621]
[1617544146829,0.10725655,58030.0,58029.0,0.52994621]
[1617544147631,0.10725655,58030.0,58029.0,0.1679405]
[1617544148030,0.10725655,58030.0,58029.0,0.10725655]
[1617544150833,1.10725655,58030.0,58029.0,0.10725655]
[1617544153740,1.10725655,58030.0,58025.0,3.55877982]
[1617544154542,1.0,58026.0,58025.0,3.55877982]
[1617544154742,1.0,58026.0,58023.0,0.46865595]
[1617544154941,1.0,58026.0,58023.0,0.3613994]
[1617544155142,3.0012,58024.0,58019.0,0.36141687]
[1617544155343,3.13422,58024.0,58019.0,0.36141687]
[1617544155743,3.13422,58024.0,58018.0,0.36141838]
[1617544156443,0.10725655,58019.0,58018.0,0.36141838]
[1617544156845,1.10725655,58019.0,58018.0,0.36141838]
[1617544159348,0.10725655,58019.0,58018.0,3.48781838]
[1617544159547,0.10725655,58019.0,58018.0,3.68781838]
[1617544159947,0.10725655,58019.0,58018.0,4.2814606]
[1617544160148,0.00209716,58030.0,58018.0,4.2814606]
[1617544160348,0.00209741,58031.0,58018.0,4.4207406]
[1617544160549,0.10935396,58031.0,58030.0,0.10725655]
[1617544160749,0.10935396,58031.0,58030.0,0.23144655]
[1617544161251,0.10725655,58031.0,58030.0,0.23144655]
[1617544163453,0.10725655,58031.0,58030.0,0.59299883]
[1617544165855,0.10725655,58031.0,58030.0,1.03484415]
[1617544169263,0.10725655,58031.0,58030.0,0.59299883]
[1617544173369,0.10725655,58031.0,58030.0,0.79299883]
[1617544184983,0.10725655,58031.0,58030.0,3.89535878]
[1617544185384,0.10725655,58031.0,58030.0,3.98637099]
[1617544189289,1.0,58042.0,58030.0,3.98637099]
[1617544190090,1.0,58041.0,58038.0,0.3612443]
[1617544190498,1.0,58040.0,58037.0,0.36124497]
[1617544190690,1.0,58040.0,58039.0,0.10725655]
[1617544191291,1.00210944,58040.0,58039.0,0.53025054]
[1617544191791,1.00210944,58040.0,58039.0,0.97308808]
[1617544192192,1.0,58040.0,58039.0,0.53025054]
[1617544192791,1.10725655,58040.0,58039.0,0.53025054]
[1617544193392,0.10725655,58040.0,58039.0,0.53025054]
[1617544193593,0.1093651,58040.0,58039.0,0.53025054]
[1617544193793,0.1093651,58040.0,58039.0,3.50895054]
[1617544194008,1.1093651,58040.0,58039.0,3.50895054]
[1617544194393,0.1093651,58040.0,58039.0,3.50895054]
[1617544194593,1.00512114,58042.0,58039.0,3.50895054]
[1617544194594,0.0021082,58041.0,58039.0,3.50895054]
[1617544194994,0.0021082,58041.0,58040.0,0.42283506]
[1617544196999,0.00210853,58042.0,58040.0,0.62283506]
[1617544197406,0.00210838,58043.0,58042.0,2.7006]
[1617544197604,0.00210838,58043.0,58042.0,2.84696]
[1617544197810,0.00210838,58043.0,58042.0,3.26978468]
[1617544198215,0.00210924,58045.0,58042.0,3.71240291]
[1617544198607,0.00210974,58047.0,58044.0,0.80474723]
[1617544198801,0.00210974,58047.0,58046.0,0.10725655]
[1617544199000,0.00210974,58047.0,58046.0,0.46939149]
[1617544199600,0.00210974,58047.0,58046.0,0.53005493]
[1617544200405,0.00211172,58048.0,58046.0,0.53005493]
[1617544201106,0.00211172,58048.0,58047.0,0.42267334]
[1617544201505,0.00512846,58049.0,58047.0,0.42267334]
[1617544201506,0.00211233,58049.0,58047.0,0.86513613]
[1617544201906,0.00211227,58048.0,58047.0,0.06066073]
[1617544202507,0.01017243,58048.0,58047.0,0.86631251]
[1617544202907,0.00513041,58048.0,58047.0,0.42320403]
[1617544203309,0.00211268,58048.0,58047.0,0.86594256]
[1617544203707,0.00211268,58048.0,58047.0,0.42320403]
[1617544204107,0.00211268,58048.0,58047.0,0.8659397]
[1617544204909,0.00211303,58050.0,58047.0,0.8659397]
[1617544205309,0.00211303,58050.0,58049.0,3.6529]
[1617544205509,0.00211293,58051.0,58049.0,4.45712181]
[1617544205911,0.00211287,58053.0,58050.0,0.95557066]
[1617544206509,0.00211285,58054.0,58052.0,0.80373919]
[1617544206909,0.01016182,58057.0,58053.0,0.91077726]
[1617544206910,0.00211276,58055.0,58053.0,0.91077726]
[1617544207411,0.00513098,58057.0,58053.0,0.91077726]
[1617544207412,0.00211273,58057.0,58054.0,0.864158]
[1617544207610,0.00211273,58057.0,58054.0,1.064158]
[1617544207810,0.00211273,58057.0,58054.0,1.212118]
[1617544208010,0.30191947,58060.0,58054.0,1.212118]
[1617544208011,0.00211193,58060.0,58054.0,1.212118]
[1617544208412,0.00211193,58061.0,58056.0,0.80257712]
[1617544208612,0.00211193,58061.0,58057.0,0.2]
[1617544208812,0.00211193,58061.0,58060.0,0.46813427]
[1617544209011,0.00211193,58061.0,58060.0,0.66813427]
[1617544209812,0.00211193,58062.0,58060.0,0.72878335]
[1617544210111,0.00211193,58062.0,58061.0,0.42107453]
[1617544210411,0.00211193,58062.0,58061.0,0.62107453]
[1617544211513,0.00512889,58062.0,58061.0,0.62107453]
[1617544212113,0.01015721,58063.0,58061.0,0.62107453]
[1617544212412,0.01015721,58062.0,58061.0,0.56042532]
[1617544214112,0.01015721,58062.0,58061.0,0.36042532]
[1617544215114,0.30180351,58063.0,58060.0,0.10725655]
[1617544215115,0.00210842,58063.0,58060.0,0.10725655]
[1617544218218,0.00210847,58064.0,58060.0,0.27293655]
[1617544218620,0.10725655,58066.0,58062.0,0.36030032]
[1617544219221,0.00211131,58064.0,58060.0,0.27293655]
[1617544219621,0.00211125,58062.0,58060.0,0.27293655]
[1617544220021,0.0021112,58065.0,58064.0,3.1218]
[1617544220420,0.0021112,58065.0,58064.0,3.48266309]
[1617544221024,0.0021112,58065.0,58064.0,3.54330857]
[1617544222324,0.10936771,58066.0,58064.0,3.54330857]
[1617544222725,0.10936771,58066.0,58065.0,0.42108027]
[1617544224629,0.10936771,58066.0,58065.0,0.36043602]
[1617544226331,0.10725655,58066.0,58064.0,0.4207815]
[1617544227734,1.0,58065.0,58064.0,0.4207815]
[1617544228133,1.0,58065.0,58064.0,0.06064429]
[1617544228332,4.2856,58065.0,58064.0,0.06064429]
[1617544228534,4.58694295,58065.0,58060.0,0.10725655]
[1617544229035,1.00210875,58061.0,58060.0,0.10725655]
[1617544229435,1.10827,58061.0,58060.0,0.10725655]
[1617544230035,1.10827,58061.0,58060.0,2.78455655]
[1617544233442,1.10827,58061.0,58060.0,3.14523696]
[1617544234044,1.10827,58061.0,58060.0,2.78455655]
[1617544234243,1.10827,58061.0,58060.0,3.14518534]
[1617544234459,1.10827,58061.0,58060.0,2.78455655]
[1617544234644,1.10827,58061.0,58060.0,3.14513923]
[1617544239449,1.15518,58061.0,58060.0,3.14513923]
[1617544241251,1.0,58061.0,58060.0,3.14513923]
[1617544245355,1.0,58061.0,58060.0,3.03788268]
[1617544245956,1.10725655,58061.0,58060.0,3.03788268]
[1617544249159,1.10725655,58061.0,58060.0,3.47932789]
[1617544251865,0.00211245,58063.0,58060.0,3.47932789]
[1617544252465,0.00513782,58063.0,58062.0,0.80341018]
[1617544252865,0.00211554,58063.0,58062.0,0.80341018]
[1617544253667,0.00211541,58065.0,58062.0,1.3053642]
[1617544254267,0.00211541,58065.0,58061.0,0.15161295]
[1617544254268,0.00211541,58065.0,58064.0,0.80316694]
[1617544255072,0.00211534,58067.0,58064.0,1.30489865]
[1617544255670,0.00211534,58067.0,58066.0,0.91683833]
[1617544256071,0.00211527,58068.0,58066.0,1.52565695]
[1617544256472,0.00211527,58068.0,58067.0,0.86311116]
[1617544256880,0.00211527,58069.0,58067.0,0.86311116]
[1617544257473,0.0021153,58068.0,58067.0,0.86311116]
[1617544258477,0.0021153,58069.0,58067.0,0.86311116]
[1617544258682,0.0021153,58069.0,58068.0,3.4192]
[1617544258875,0.0021153,58069.0,58068.0,4.22157012]
[1617544259275,0.0021153,58069.0,58068.0,4.37316277]
[1617544259975,0.00211382,58070.0,58068.0,4.37316277]
[1617544260376,0.00211382,58070.0,58069.0,0.95313367]
[1617544261974,0.00513357,58071.0,58069.0,0.95313367]
[1617544262175,0.10725655,58070.0,58069.0,0.95313367]
[1617544262375,0.10937039,58070.0,58069.0,0.15159229]
[1617544262577,0.01853119,58070.0,58069.0,0.15159229]
[1617544262777,0.24508541,58073.0,58069.0,0.15159229]
[1617544262980,0.00211687,58071.0,58069.0,1.45485337]
[1617544263385,1.00211679,58078.0,58071.0,1.3021016]
[1617544263577,0.00211679,58078.0,58071.0,1.3021016]
[1617544263977,0.0021167,58081.0,58070.0,1.92328068]
[1617544264177,0.0021167,58081.0,58080.0,0.10725655]
[1617544264780,0.00725716,58082.0,58080.0,1.04871851]
[1617544264980,0.0021166,58082.0,58080.0,1.46990791]
[1617544265381,0.0021166,58082.0,58080.0,1.40927841]
[1617544265780,0.0021166,58082.0,58081.0,1.36263361]
[1617544266578,1.0021166,58083.0,58081.0,1.36263361]
[1617544267180,1.0021166,58083.0,58082.0,1.30181158]
[1617544267581,1.36293796,58083.0,58082.0,0.80111482]
[1617544267983,1.0,58083.0,58082.0,0.80111482]
[1617544268180,1.36293836,58084.0,58082.0,0.80111482]
[1617544268381,0.36293836,58084.0,58082.0,0.80111482]
[1617544268881,0.01016049,58084.0,58083.0,0.35976094]
[1617544269981,1.01016049,58084.0,58083.0,0.35976094]
[1617544270182,0.01016049,58084.0,58083.0,0.35976094]
[1617544270585,0.00513033,58084.0,58083.0,0.49414094]
[1617544271185,0.01016006,58086.0,58083.0,0.99414199]
[1617544271186,0.00211244,58085.0,58083.0,0.99414199]
[1617544271585,0.00211244,58086.0,58083.0,0.99414199]
[1617544271987,0.00211244,58086.0,58084.0,0.85935566]
[1617544272586,0.00211238,58087.0,58085.0,0.79862213]
[1617544272986,0.00211238,58087.0,58085.0,0.85924369]
[1617544273289,0.00211232,58088.0,58086.0,0.79849078]
[1617544273788,0.00211232,58087.0,58086.0,0.85911187]
[1617544274189,0.00211232,58087.0,58086.0,0.90574733]
[1617544274790,0.00211232,58087.0,58086.0,0.96636891]
[1617544274990,1.00211232,58087.0,58086.0,0.96636891]
[1617544275191,0.00211232,58087.0,58086.0,0.96636891]
[1617544276190,1.00211232,58087.0,58086.0,0.96636891]
[1617544276991,1.0,58087.0,58086.0,0.96636891]
[1617544277291,1.00211216,58087.0,58086.0,0.52719898]
[1617544277491,1.00211216,58087.0,58086.0,0.16787813]
[1617544277690,3.49371216,58087.0,58086.0,0.52724497]
[1617544278592,3.4916,58087.0,58086.0,0.96643161]
[1617544278993,3.49672956,58087.0,58086.0,0.52724497]
[1617544279409,3.49672956,58087.0,58086.0,0.41998842]
[1617544279792,3.5017516,58087.0,58084.0,0.35939067]
[1617544279995,3.5526516,58087.0,58084.0,0.35939067]
[1617544280191,3.5526516,58087.0,58059.0,0.15156278]
[1617544280192,0.10725655,58085.0,58082.0,0.35960829]
[1617544280391,0.21439655,58085.0,58082.0,0.35960829]
[1617544280792,0.01015226,58083.0,58081.0,0.35967601]
[1617544281191,0.00512638,58082.0,58081.0,0.35967601]
[1617544281892,1.00512638,58082.0,58081.0,0.35967601]
[1617544282192,1.01015247,58082.0,58080.0,0.3597302]
[1617544282593,0.0051265,58081.0,58080.0,0.3597302]
[1617544283094,0.00211091,58081.0,58080.0,0.3597302]
[1617544283894,1.00512653,58081.0,58080.0,0.3597302]
[1617544284695,1.00211093,58081.0,58080.0,0.3597302]
[1617544285095,1.0,58081.0,58080.0,0.3597302]
[1617544285497,1.00211093,58081.0,58080.0,0.3597302]
[1617544286696,1.00211093,58081.0,58079.0,0.42024273]
[1617544286697,1.00512441,58081.0,58079.0,0.42024273]
[1617544287297,0.00211007,58080.0,58079.0,0.42024273]
[1617544287699,1.00512441,58081.0,58079.0,0.42024273]
[1617544287700,1.0,58081.0,58079.0,0.85978755]
[1617544288099,1.0,58081.0,58079.0,0.79915849]
[1617544288499,0.21439655,58085.0,58079.0,0.79915849]
[1617544288701,1.0,58080.0,58079.0,0.79915849]
[1617544289101,1.0,58080.0,58079.0,0.79913318]
[1617544292004,1.0512,58080.0,58079.0,0.79913318]
[1617544292604,1.0,58080.0,58079.0,0.79913318]
[1617544293204,1.0,58080.0,58078.0,0.10725655]
[1617544293708,1.0,58080.0,58079.0,0.799324]
[1617544295108,1.0,58080.0,58079.0,3.3622]
[1617544295509,1.0,58080.0,58079.0,4.16125598]
[1617544295909,1.0,58080.0,58079.0,4.25219897]
[1617544296711,1.0,58080.0,58079.0,0.88999897]
[1617544296909,1.16285,58080.0,58079.0,0.88999897]
[1617544297110,1.16285,58080.0,58079.0,0.79905598]
[1617544297710,4.67745,58080.0,58079.0,0.79905598]
[1617544298812,1.16285,58080.0,58079.0,0.79905598]
[1617544299013,1.16285,58080.0,58079.0,4.17618461]
[1617544299315,1.16285,58080.0,58079.0,4.26712738]
[1617544299515,0.16285,58080.0,58079.0,4.26712738]
[1617544299714,0.10725655,58085.0,58079.0,4.26712738]
[1617544299915,1.0,58080.0,58079.0,4.26712738]
[1617544300115,1.20842,58080.0,58079.0,4.26712738]
[1617544300316,1.15762,58080.0,58079.0,4.7667491]
[1617544302719,1.15762,58080.0,58079.0,1.4502491]
[1617544302918,4.48142,58080.0,58079.0,1.4502491]
[1617544303117,4.28142,58080.0,58079.0,1.4502491]
[1617544303518,4.28142,58080.0,58079.0,0.85968461]
[1617544303717,4.48142,58080.0,58079.0,0.85968461]
[1617544304319,5.98142,58080.0,58079.0,0.85968461]
[1617544304522,5.98655135,58080.0,58079.0,0.35957519]
[1617544305019,6.28336557,58080.0,58079.0,0.35957519]
[1617544305519,6.28336557,58080.0,58079.0,0.42020832]
[1617544305922,5.99158233,58080.0,58079.0,0.35957519]
[1617544306321,6.28337672,58080.0,58079.0,0.35957519]
[1617544307124,4.78337672,58080.0,58079.0,0.35957519]
[1617544307522,4.49158235,58080.0,58079.0,0.35957519]
[1617544308125,4.49158235,58080.0,58079.0,0.79992787]
[1617544308126,4.48353295,58080.0,58079.0,0.79992787]
[1617544308727,4.78395225,58080.0,58079.0,0.79992787]
[1617544309427,6.28395225,58080.0,58079.0,0.79992787]
[1617544309627,5.28395225,58080.0,58079.0,0.79992787]
[1617544309827,6.64697925,58080.0,58079.0,0.79992787]
[1617544310027,6.64697925,58080.0,58074.0,0.50165913]
[1617544310428,0.10725655,58075.0,58074.0,0.50165913]
[1617544310830,1.112398,58075.0,58074.0,1.30429258]
[1617544311332,1.1093736,58075.0,58074.0,1.30429258]
[1617544311730,1.10725655,58075.0,58074.0,1.30429258]
[1617544313033,1.10937346,58075.0,58074.0,1.30429258]
[1617544314737,1.10725655,58075.0,58074.0,1.30429258]
[1617544315135,1.11239759,58075.0,58074.0,1.30429258]
[1617544319642,1.11744233,58075.0,58074.0,1.30429258]
[1617544322044,1.11744233,58075.0,58074.0,0.36118505]
[1617544322244,1.10725655,58075.0,58061.0,0.10725655]
[1617544322445,0.10725655,58062.0,58061.0,0.10725655]
[1617544323047,0.10725655,58062.0,58061.0,1.97415487]
[1617544323546,1.10624599,58062.0,58061.0,1.97415487]
[1617544325351,1.10624599,58062.0,58061.0,1.97413578]
[1617544326149,3.58433599,58062.0,58061.0,1.86687923]
[1617544326352,4.58433599,58062.0,58061.0,1.86687923]
[1617544327151,3.58433599,58062.0,58061.0,1.86687923]
[1617544327350,4.58433599,58062.0,58061.0,1.86687923]
[1617544328153,4.58433599,58062.0,58061.0,1.30480232]
[1617544328953,4.88692385,58062.0,58061.0,0.80294793]
[1617544329353,4.58433599,58062.0,58061.0,1.30644638]
[1617544329955,4.59451946,58062.0,58061.0,1.30644638]
[1617544330654,4.58433599,58062.0,58061.0,1.30644638]
[1617544331056,4.59451945,58062.0,58061.0,1.30644638]
[1617544331456,1.27871945,58062.0,58061.0,1.30644638]
[1617544332056,1.57111803,58062.0,58061.0,0.80294793]
[1617544332456,1.26853599,58062.0,58061.0,0.86358939]
[1617544332657,1.26853599,58062.0,58061.0,1.3671748]
[1617544333058,1.27871946,58062.0,58061.0,1.30653334]
[1617544333460,1.27871946,58062.0,58061.0,1.36717366]
[1617544334359,1.27367785,58062.0,58061.0,1.36717366]
[1617544334759,1.27065322,58062.0,58061.0,1.36717366]
[1617544335260,1.26853599,58062.0,58061.0,1.36717366]
[1617544337562,1.26853599,58062.0,58060.0,0.10725655]
[1617544337763,1.26853599,58062.0,58061.0,1.3075666]
[1617544338764,1.26853599,58062.0,58061.0,1.4133566]
[1617544340869,1.10624599,58062.0,58061.0,1.4133566]
[1617544341871,1.10624599,58062.0,58061.0,4.7556566]
[1617544342072,1.0,58062.0,58061.0,5.31852902]
[1617544342473,1.0,58062.0,58061.0,5.40947532]
[1617544347280,0.99898954,58062.0,58061.0,5.40947532]
[1617544347581,1.0,58062.0,58061.0,5.40947532]
[1617544348581,1.0,58063.0,58061.0,5.40947532]
[1617544349082,1.0,58063.0,58062.0,2.02029472]
[1617544349281,1.0,58063.0,58062.0,2.22029472]
[1617544349482,1.0,58063.0,58062.0,2.36175713]
[1617544349883,1.0,58063.0,58062.0,2.22029472]
[1617544350283,1.0,58065.0,58062.0,2.22029472]
[1617544350498,0.10725655,58071.0,58062.0,2.22029472]
[1617544350705,1.0,58067.0,58065.0,0.2]
[1617544350890,1.0,58070.0,58065.0,0.2]
[1617544351184,0.10725655,58071.0,58067.0,0.2]
[1617544351685,0.10725655,58071.0,58070.0,1.86502582]
[1617544351883,0.10725655,58071.0,58070.0,2.06502582]
[1617544352483,1.0,58072.0,58070.0,2.06502582]
[1617544352684,1.0,58074.0,58072.0,0.2]
[1617544353084,0.10725655,58079.0,58078.0,2.5574]
[1617544353285,0.10725655,58079.0,58078.0,2.7574]
[1617544353488,1.0,58084.0,58078.0,4.0597231]
[1617544353685,0.00211546,58085.0,58078.0,4.0597231]
[1617544354086,1.00211537,58089.0,58083.0,1.30139298]
[1617544354485,1.00211537,58089.0,58084.0,1.30123421]
[1617544354685,1.00211537,58089.0,58088.0,0.10725655]
[1617544354885,1.0,58089.0,58088.0,0.58878887]
[1617544355086,1.0,58089.0,58088.0,1.52929104]
[1617544355286,1.0,58089.0,58088.0,1.58990446]
[1617544356088,1.0,58089.0,58088.0,1.78990446]
[1617544356987,4.6294,58089.0,58088.0,1.78990446]
[1617544357688,4.6294,58089.0,58088.0,1.58990446]
[1617544358591,4.6294,58089.0,58088.0,1.08963735]
[1617544359390,1.0,58089.0,58088.0,1.08963735]
[1617544360291,1.0,58089.0,58088.0,4.68793735]
[1617544360891,1.0,58089.0,58088.0,4.77885588]
[1617544363090,1.0,58089.0,58088.0,1.18055588]
[1617544363491,1.0,58089.0,58088.0,3.82519655]
[1617544363992,1.0,58089.0,58088.0,4.62454898]
[1617544366200,1.0,58091.0,58088.0,1.02794898]
[1617544366401,1.0,58091.0,58088.0,3.68754898]
[1617544367001,1.0,58091.0,58090.0,0.79902947]
[1617544367201,1.0,58091.0,58090.0,0.99902947]
[1617544367902,1.0,58091.0,58090.0,1.05963944]
[1617544368203,1.0,58091.0,58090.0,3.67543944]
[1617544368405,1.0,58091.0,58090.0,4.17471063]
[1617544368805,1.0,58091.0,58090.0,4.26562251]
[1617544369404,1.0,58091.0,58090.0,3.76635132]
[1617544369604,1.0,58091.0,58090.0,0.95055132]
[1617544370205,1.0,58091.0,58090.0,0.88994135]
[1617544370405,3.5946,58091.0,58090.0,0.79902947]
[1617544370807,3.5946,58091.0,58090.0,0.85963891]
[1617544371208,3.5946,58091.0,58090.0,0.35956326]
[1617544371611,3.5946,58091.0,58090.0,0.79852919]
[1617544372811,1.0,58091.0,58090.0,0.79852919]
[1617544373012,1.0,58091.0,58090.0,3.51236326]
[1617544373412,1.0,58091.0,58090.0,4.01159289]
[1617544374014,1.0,58091.0,58090.0,4.10250851]
[1617544376917,1.0,58091.0,58090.0,0.94970851]
[1617544377720,1.0,58091.0,58090.0,0.79818184]
[1617544378420,1.0,58091.0,58090.0,0.79633649]
[1617544378820,1.0,58091.0,58090.0,2.70148649]
[1617544379020,0.00210701,58102.0,58090.0,5.54438649]
[1617544379421,0.36130207,58108.0,58090.0,5.54438649]
[1617544379422,1.0,58114.0,58090.0,6.74822305]
[1617544379620,0.00210683,58117.0,58091.0,1.0]
[1617544379821,0.00210674,58119.0,58118.0,2.6752]
[1617544380020,0.00210674,58119.0,58118.0,2.77942]
[1617544380221,1.0,58121.0,58118.0,2.77942]
[1617544380620,1.0,58122.0,58118.0,2.77942]
[1617544380821,1.0,58123.0,58118.0,2.77942]
[1617544381222,1.0,58123.0,58122.0,0.10725655]
[1617544383626,1.0,58123.0,58122.0,3.35835655]
[1617544384228,1.0,58123.0,58122.0,0.10725655]
[1617544384426,5.5067,58123.0,58118.0,0.35549611]
[1617544384627,2.6655,58123.0,58118.0,0.35549611]
[1617544384827,2.6655,58123.0,58114.0,0.35586249]
[1617544384828,7.6655,58123.0,58114.0,0.35586249]
[1617544385027,6.0,58119.0,58114.0,0.35586249]
[1617544385229,2.5231,58110.0,58104.0,0.10725655]
[1617544385629,2.66856,58110.0,58104.0,0.10725655]
[1617544386630,1.0,58105.0,58104.0,0.10725655]
[1617544387234,1.10725655,58105.0,58104.0,0.10725655]
[1617544390529,1.10725655,58105.0,58100.0,0.356783]
[1617544390730,7.60725655,58105.0,58098.0,0.35689567]
[1617544391129,6.0,58101.0,58098.0,0.35689567]
[1617544391332,2.5053,58094.0,58093.0,0.35723307]
[1617544391532,2.65883,58094.0,58093.0,0.35723307]
[1617544391732,2.65883,58094.0,58092.0,0.10725655]
[1617544392132,3.65883,58094.0,58092.0,0.10725655]
[1617544392533,1.0,58093.0,58092.0,0.10725655]
[1617544393137,1.0,58093.0,58092.0,0.4646564]
[1617544393336,1.10725655,58093.0,58092.0,0.4646564]
[1617544393936,1.10725655,58093.0,58092.0,0.35739985]
[1617544394939,5.30695655,58093.0,58092.0,0.35739985]
[1617544395438,10.30695655,58093.0,58089.0,0.35748974]
[1617544395638,10.30695655,58093.0,58088.0,0.35760709]
[1617544396240,10.30695655,58093.0,58089.0,0.35839382]
[1617544396641,10.30695655,58093.0,58085.0,0.3587256]
[1617544396840,1.5,58089.0,58085.0,0.3587256]
[1617544397066,2.5,58086.0,58082.0,0.35894946]
[1617544397252,0.10725655,58083.0,58082.0,0.35894946]
[1617544397854,1.10725655,58083.0,58082.0,0.35894946]
[1617544398052,1.10725655,58083.0,58081.0,0.35919301]
[1617544398660,1.10725655,58083.0,58075.0,0.10725655]
[1617544398661,1.10725655,58083.0,58082.0,0.35915317]
[1617544399544,1.0,58083.0,58082.0,3.11415317]
[1617544399744,1.0,58083.0,58082.0,3.27741317]
[1617544400343,1.0,58083.0,58082.0,3.86716219]
[1617544401243,1.0,58083.0,58082.0,3.97441874]
[1617544401844,0.10725655,58088.0,58082.0,3.97441874]
[1617544402050,1.0,58083.0,58082.0,3.97441874]
[1617544402346,1.0,58083.0,58082.0,4.47201659]
[1617544402746,1.0,58083.0,58082.0,1.71701659]
[1617544403348,1.0,58083.0,58082.0,1.62609622]
[1617544405359,0.11448087,58100.0,58082.0,1.62609622]
[1617544405553,1.0,58085.0,58082.0,4.89689622]
[1617544405752,1.0,58085.0,58082.0,1.62609622]
[1617544405957,3.5234,58090.0,58084.0,1.29423432]
[1617544406377,3.63757,58090.0,58084.0,1.29423432]
[1617544406553,3.63757,58090.0,58086.0,0.49779734]
[1617544406953,3.63757,58090.0,58089.0,0.79681324]
[1617544407360,4.63757,58090.0,58089.0,0.79681324]
[1617544407762,4.63757,58090.0,58069.0,0.69841548]
[1617544408154,0.00211073,58088.0,58084.0,0.43969158]
[1617544408761,0.00211073,58088.0,58087.0,0.35975045]
[1617544409257,0.00211077,58089.0,58087.0,0.35975045]
[1617544409657,0.00211077,58089.0,58088.0,0.35972893]
[1617544410056,3.52551075,58090.0,58088.0,0.35972893]
[1617544410558,3.5234,58090.0,58089.0,0.35961706]
[1617544411658,4.5234,58090.0,58089.0,0.35961706]
[1617544411857,6.0234,58090.0,58089.0,0.35961706]
[1617544412058,11.03355171,58090.0,58088.0,0.35982507]
[1617544412261,11.14945171,58090.0,58088.0,0.35982507]
[1617544412559,0.30165492,58089.0,58086.0,0.35998511]
[1617544412760,1.5,58088.0,58086.0,0.35998511]
[1617544413060,0.0101524,58087.0,58086.0,0.35998511]
[1617544413261,1.0101524,58087.0,58086.0,0.35998511]
[1617544413461,1.00512647,58087.0,58086.0,0.35998511]
[1617544414061,1.0,58087.0,58086.0,0.35998511]
[1617544414661,1.14514,58087.0,58086.0,0.35998511]
[1617544414865,0.14514,58087.0,58086.0,0.35998511]
[1617544415063,1.14514,58087.0,58086.0,0.35998511]
[1617544417163,0.14514,58087.0,58086.0,0.35998511]
[1617544417366,1.14514,58087.0,58086.0,0.35998511]
[1617544417964,2.64514,58087.0,58086.0,0.35998511]
[1617544418569,2.64514,58087.0,58084.0,0.35948311]
[1617544419069,2.64724866,58087.0,58083.0,0.35949366]
[1617544419269,2.64724866,58087.0,58084.0,0.35948533]
[1617544419669,0.0021087,58086.0,58083.0,0.35964996]
[1617544419871,1.0,58085.0,58083.0,0.35964996]
[1617544420374,1.0,58084.0,58083.0,0.35964996]
[1617544421371,1.0,58084.0,58083.0,0.10725655]
[1617544421574,1.0,58084.0,58083.0,0.52759935]
[1617544423274,1.0,58084.0,58083.0,0.52769685]
[1617544424773,1.0,58084.0,58083.0,0.4204403]
[1617544425581,1.0,58084.0,58083.0,0.35981768]
[1617544425978,1.0,58084.0,58083.0,0.42043964]